bitfinex/quotes_BTCUSD_20220307
["timestamp","ask_amount","ask_price","bid_price","bid_amount"]
[1646630316374,0.01076266,38118.0,38111.0,0.32356115]
[1646630316574,0.01335674,38116.0,38112.0,0.026086]
[1646630316773,0.01359126,38119.0,38112.0,0.026086]
[1646630316973,0.0124724,38118.0,38114.0,0.1612166]
[1646630317574,0.0124724,38118.0,38111.0,0.32356115]
[1646630317773,0.37720122,38121.0,38111.0,0.19232449]
[1646630317774,0.07616465,38116.0,38111.0,0.19232449]
[1646630317973,0.08035093,38116.0,38111.0,0.19232449]
[1646630318174,0.05,38115.0,38110.0,0.13123693]
[1646630318820,0.05,38115.0,38111.0,0.19089987]
[1646630319219,0.05,38115.0,38111.0,0.36812341]
[1646630319419,0.05,38115.0,38112.0,0.026084]
[1646630319817,0.32720122,38120.0,38112.0,0.026084]
[1646630320019,0.06878222,38121.0,38111.0,0.36812341]
[1646630320218,0.11878222,38121.0,38111.0,0.42137851]
[1646630320421,0.27424613,38120.0,38111.0,0.36812341]
[1646630321225,0.60144735,38120.0,38111.0,0.36812341]
[1646630321625,0.21698647,38118.0,38111.0,0.36812341]
[1646630321923,6.075e-05,38115.0,38112.0,0.026084]
[1646630322124,0.0655055,38115.0,38112.0,0.026088]
[1646630322569,0.01362953,38114.0,38112.0,0.026088]
[1646630323168,0.1155055,38115.0,38111.0,0.36812341]
[1646630323972,0.1155055,38115.0,38112.0,0.026088]
[1646630324169,0.1165055,38115.0,38112.0,0.026088]
[1646630325372,0.1165055,38115.0,38111.0,0.17722354]
[1646630325373,0.25635698,38114.0,38109.0,0.02609]
[1646630325672,0.25635698,38114.0,38109.0,0.026094]
[1646630326316,0.75036877,38114.0,38109.0,0.026094]
[1646630326523,0.75036877,38114.0,38106.0,0.42317352]
[1646630326718,0.01453876,38114.0,38108.0,0.00016701]
[1646630326921,0.01453876,38114.0,38109.0,0.21562495]
[1646630327117,0.01080304,38114.0,38110.0,0.026092]
[1646630327320,0.00294707,38119.0,38112.0,0.15]
[1646630327520,0.00294707,38119.0,38111.0,0.026092]
[1646630327521,0.00294707,38119.0,38118.0,0.15]
[1646630327719,0.01479038,38128.0,38118.0,0.56181328]
[1646630327919,0.01374415,38128.0,38124.0,0.40880348]
[1646630328120,0.01374415,38128.0,38126.0,0.06559963]
[1646630328121,0.01449207,38128.0,38126.0,0.06559963]
[1646630328317,0.00619438,38128.0,38127.0,0.02605]
[1646630328517,0.00019643,38130.0,38127.0,0.02605]
[1646630328719,0.01594093,38128.0,38127.0,0.02605]
[1646630328916,0.35156593,38133.0,38127.0,0.02605]
[1646630328917,0.35078027,38133.0,38127.0,0.02605]
[1646630329121,0.00019648,38130.0,38127.0,0.32720122]
[1646630329520,0.00019648,38130.0,38129.0,0.15]
[1646630330170,0.01090762,38138.0,38132.0,0.06558508]
[1646630330374,0.00361522,38137.0,38132.0,0.06558508]
[1646630331177,0.01010587,38145.0,38133.0,0.26995896]
[1646630331371,0.131161,38146.0,38138.0,0.06557556]
[1646630331570,0.131161,38146.0,38143.0,0.20033442]
[1646630332373,0.0144,38152.0,38143.0,0.20033442]
[1646630332374,0.02648029,38152.0,38145.0,0.07464739]
[1646630332673,0.4995,38160.0,38145.0,0.07464739]
[1646630332674,0.1204,38161.0,38157.0,0.20604942]
[1646630332870,0.0798402,38160.0,38149.0,0.32581866]
[1646630333069,0.0798402,38160.0,38149.0,0.47581866]
[1646630333270,0.131101,38161.0,38160.0,0.43004434]
[1646630333271,0.371301,38161.0,38160.0,0.43004434]
[1646630333474,0.2435,38161.0,38160.0,0.82993399]
[1646630333677,0.0001,38168.0,38161.0,1.2]
[1646630333922,0.0001,38168.0,38163.0,0.20744579]
[1646630334117,0.01448297,38168.0,38164.0,0.0131]
[1646630334320,0.065631,38168.0,38163.0,0.33891866]
[1646630334516,0.065631,38168.0,38165.0,0.15]
[1646630334816,0.065631,38168.0,38164.0,0.0131]
[1646630334817,0.01024062,38167.0,38164.0,0.0131]
[1646630335016,0.065631,38168.0,38162.0,0.06552658]
[1646630335017,0.06578241,38168.0,38162.0,0.06552658]
[1646630335222,0.01336951,38164.0,38159.0,0.52581866]
[1646630335418,0.20083854,38165.0,38159.0,0.0526]
[1646630335419,0.16533561,38165.0,38159.0,0.0526]
[1646630335820,0.16533561,38165.0,38158.0,0.0999]
[1646630335821,0.055549,38162.0,38153.0,0.19659129]
[1646630336020,0.15567406,38160.0,38154.0,0.003]
[1646630336220,0.01339049,38159.0,38150.0,0.16751962]
[1646630336421,0.01339049,38159.0,38151.0,0.0526]
[1646630336422,0.1826575,38153.0,38151.0,0.0526]
[1646630336718,0.01233038,38152.0,38141.0,0.32581866]
[1646630337417,0.01233038,38152.0,38146.0,0.18459505]
[1646630337685,0.00020945,38148.0,38147.0,0.32581866]
[1646630337879,0.01146488,38152.0,38147.0,1.52581866]
[1646630338082,0.196645,38163.0,38151.0,0.9559]
[1646630338279,0.196645,38163.0,38160.0,0.17510212]
[1646630338476,0.196645,38163.0,38153.0,0.2]
[1646630338677,0.01015994,38161.0,38152.0,0.06555152]
[1646630338878,0.22074317,38161.0,38152.0,0.20062046]
[1646630339078,0.01134482,38160.0,38152.0,0.20062046]
[1646630339277,0.00636113,38161.0,38153.0,0.8585]
[1646630339479,0.065536,38162.0,38160.0,0.19393576]
[1646630339677,0.065536,38162.0,38156.0,0.2]
[1646630339882,0.065536,38162.0,38153.0,0.1525]
[1646630340077,0.065536,38162.0,38156.0,0.06553945]
[1646630340279,0.065536,38162.0,38155.0,0.13408099]
[1646630340280,0.01300857,38161.0,38155.0,0.13408099]
[1646630340480,0.32220639,38161.0,38155.0,0.003]
[1646630340678,0.16722042,38159.0,38155.0,0.003]
[1646630340878,0.30919782,38161.0,38155.0,0.003]
[1646630341076,0.01033164,38159.0,38155.0,0.003]
[1646630341319,0.115536,38162.0,38155.0,0.16583286]
[1646630341722,0.115536,38162.0,38158.0,0.16868403]
[1646630341919,0.115536,38162.0,38155.0,0.16583286]
[1646630342320,0.115536,38162.0,38156.0,0.06554188]
[1646630342321,0.11576162,38162.0,38156.0,0.06554188]
[1646630342520,0.06576162,38162.0,38157.0,0.30919782]
[1646630342720,0.06576162,38162.0,38157.0,0.2]
[1646630343120,0.32576162,38162.0,38157.0,0.2]
[1646630343322,0.325536,38162.0,38156.0,0.06554188]
[1646630343521,0.00022562,38161.0,38156.0,0.24708221]
[1646630343721,0.00022562,38161.0,38156.0,0.18154033]
[1646630344120,0.20481537,38160.0,38156.0,0.18154033]
[1646630344321,0.24575928,38159.0,38154.0,0.1310845]
[1646630344522,0.26857019,38160.0,38154.0,0.1310845]
[1646630344724,0.26879582,38160.0,38154.0,0.1310845]
[1646630345168,0.26879582,38160.0,38155.0,0.18221857]
[1646630345567,0.26857019,38160.0,38155.0,0.18221857]
[1646630345965,0.26857019,38160.0,38156.0,0.06554209]
[1646630345966,0.00022175,38159.0,38156.0,0.06554209]
[1646630346166,0.00022175,38159.0,38155.0,0.18221857]
[1646630346567,0.00022175,38159.0,38154.0,0.1310845]
[1646630346768,0.01233313,38159.0,38154.0,0.1310845]
[1646630346967,0.01347386,38160.0,38155.0,0.26554209]
[1646630347167,0.00022175,38158.0,38157.0,0.2]
[1646630347370,0.00022175,38158.0,38157.0,0.41205542]
[1646630347567,0.00022175,38158.0,38157.0,0.38942864]
[1646630347967,0.01323981,38161.0,38157.0,0.38942864]
[1646630348267,0.00022175,38159.0,38157.0,0.18942864]
[1646630348466,0.00022175,38159.0,38158.0,0.2]
[1646630348914,0.00022175,38159.0,38154.0,0.1310845]
[1646630349114,0.00022175,38159.0,38158.0,0.0999]
[1646630349315,0.065536,38162.0,38158.0,0.0999]
[1646630349820,0.2680158,38156.0,38152.0,0.00016571]
[1646630350023,0.20238247,38153.0,38152.0,0.00016571]
[1646630350218,0.25238247,38153.0,38142.0,0.20396366]
[1646630350415,0.56158029,38153.0,38143.0,0.0131]
[1646630350616,0.56158029,38153.0,38140.0,0.19]
[1646630351015,0.131144,38148.0,38140.0,0.19]
[1646630351219,0.131144,38148.0,38132.0,0.1248]
[1646630351220,0.36179782,38147.0,38132.0,0.1248]
[1646630351417,0.36179782,38147.0,38131.0,0.06151417]
[1646630351618,0.17879957,38146.0,38137.0,0.16998317]
[1646630351818,0.22879957,38146.0,38137.0,0.16998317]
[1646630352016,0.0131677,38144.0,38137.0,0.16998317]
[1646630352216,0.55789014,38147.0,38146.0,0.34228724]
[1646630352417,0.065571,38148.0,38146.0,0.34228724]
[1646630354972,0.21666883,38147.0,38146.0,0.34228724]
[1646630355374,0.065571,38148.0,38146.0,0.34228724]
[1646630356174,0.390349,38147.0,38146.0,0.34228724]
[1646630356621,0.068571,38148.0,38146.0,0.34228724]
[1646630356821,0.442949,38147.0,38146.0,0.34228724]
[1646630357020,0.442949,38147.0,38138.0,0.0999]
[1646630357021,1.2,38146.0,38138.0,0.0999]
[1646630357221,0.065601,38141.0,38127.0,0.30973972]
[1646630357421,0.065601,38141.0,38123.0,0.25432093]
[1646630357422,0.26424365,38135.0,38123.0,0.25432093]
[1646630357822,0.17487928,38131.0,38124.0,0.20323201]
[1646630358018,0.0526,38137.0,38124.0,0.20323201]
[1646630358221,0.27240259,38140.0,38128.0,0.174005]
[1646630358222,0.16074461,38135.0,38128.0,0.174005]
[1646630358618,0.065605,38133.0,38128.0,0.174005]
[1646630359320,0.065605,38133.0,38128.0,0.23208518]
[1646630359919,0.065605,38133.0,38128.0,0.5418249]
[1646630360174,0.131169,38140.0,38131.0,0.2]
[1646630360378,0.131169,38140.0,38133.0,0.19681499]
[1646630360774,0.70008872,38139.0,38133.0,0.19681499]
[1646630360975,0.70008872,38139.0,38126.0,0.2169429]
[1646630360976,0.196817,38136.0,38126.0,0.2169429]
[1646630361174,0.18943863,38132.0,38126.0,0.2169429]
[1646630361374,0.065604,38134.0,38120.0,0.0999]
[1646630361574,0.131214,38128.0,38120.0,0.0999]
[1646630361775,0.131214,38128.0,38121.0,0.15661388]
[1646630362175,0.01222044,38127.0,38122.0,0.06382459]
[1646630362374,0.01222044,38127.0,38124.0,0.1576528]
[1646630363824,0.0256544,38128.0,38124.0,0.15785844]
[1646630364227,0.0256544,38128.0,38124.0,0.35785844]
[1646630364228,0.01,38128.0,38124.0,0.35785844]
[1646630364425,0.01,38128.0,38125.0,0.31015812]
[1646630364928,0.01311,38142.0,38125.0,0.31015812]
[1646630364929,0.0143241,38141.0,38138.0,0.20878635]
[1646630365128,0.01360834,38140.0,38136.0,0.16468618]
[1646630365327,0.17717414,38143.0,38136.0,0.16468618]
[1646630365532,0.16358272,38143.0,38136.0,0.16468618]
[1646630365927,0.0131,38146.0,38136.0,0.16468618]
[1646630366127,0.01301202,38145.0,38136.0,0.16468618]
[1646630366327,0.065575,38147.0,38138.0,0.00020556]
[1646630366528,0.078675,38147.0,38138.0,0.00020556]
[1646630366728,0.065575,38147.0,38138.0,0.00020556]
[1646630366931,0.065575,38147.0,38139.0,0.17483445]
[1646630366932,0.01208534,38143.0,38139.0,0.17483445]
[1646630367238,0.0131,38149.0,38144.0,0.15972109]
[1646630367431,0.0143083,38153.0,38144.0,0.15972109]
[1646630367432,0.065563,38151.0,38144.0,0.15972109]
[1646630367874,0.01342494,38149.0,38145.0,0.05271934]
[1646630368074,0.21276274,38150.0,38148.0,0.16202989]
[1646630368271,0.21276274,38150.0,38144.0,0.31015812]
[1646630368474,0.34390374,38150.0,38137.0,0.0999]
[1646630368673,0.34390374,38150.0,38143.0,0.00020553]
[1646630369274,0.19171135,38149.0,38143.0,0.00020553]
[1646630369474,0.21047456,38144.0,38143.0,0.00020553]
[1646630369674,0.33753734,38144.0,38137.0,0.16237476]
[1646630369874,0.33753734,38144.0,38143.0,0.00019063]
[1646630370076,0.33737543,38144.0,38143.0,0.00019063]
[1646630370586,0.72772443,38144.0,38143.0,0.00019063]
[1646630370778,0.72772443,38144.0,38139.0,0.004]
[1646630370976,0.2000267,38140.0,38139.0,0.004]
[1646630371176,0.2000267,38140.0,38131.0,0.18112032]
[1646630371419,0.2106484,38137.0,38131.0,0.18112032]
[1646630371727,0.065588,38138.0,38132.0,0.06556818]
[1646630372322,0.065588,38138.0,38131.0,0.18112032]
[1646630373124,0.065588,38138.0,38128.0,0.20935279]
[1646630373325,0.065588,38138.0,38127.0,0.01311]
[1646630373326,0.20568555,38133.0,38127.0,0.01311]
[1646630373524,0.27128155,38133.0,38127.0,0.01311]
[1646630373723,0.27128155,38133.0,38121.0,0.22843208]
[1646630373724,0.27128155,38133.0,38126.0,0.01311]
[1646630373925,0.31015812,38132.0,38123.0,0.01311]
[1646630374123,0.2019096,38129.0,38123.0,0.01311]
[1646630374325,0.2019096,38129.0,38122.0,0.005]
[1646630374326,0.17943322,38126.0,38122.0,0.005]
[1646630374721,0.2019096,38129.0,38122.0,0.005]
[1646630374921,0.31015812,38130.0,38129.0,0.00022361]
[1646630375174,0.37575912,38131.0,38129.0,0.00022361]
[1646630375373,0.065601,38131.0,38129.0,0.00022361]
[1646630375777,0.19528075,38130.0,38129.0,0.00022361]
[1646630375975,0.70949539,38130.0,38129.0,0.00022361]
[1646630376172,0.065601,38131.0,38129.0,0.00022361]
[1646630376173,0.067601,38131.0,38129.0,0.00022361]
[1646630376773,0.067601,38131.0,38129.0,0.00031242]
[1646630377676,0.065601,38131.0,38129.0,0.00031242]
[1646630378572,0.065601,38131.0,38128.0,0.00020473]
[1646630378573,0.065601,38131.0,38125.0,0.20419678]
[1646630379616,0.065601,38131.0,38125.0,0.41410844]
[1646630380017,0.065601,38131.0,38125.0,0.20419678]
[1646630380920,0.065601,38131.0,38126.0,0.73018525]
[1646630381118,0.07843579,38131.0,38126.0,0.93415514]
[1646630381320,0.07843579,38131.0,38126.0,0.73018525]
[1646630381919,0.07843579,38131.0,38129.0,0.0999]
[1646630382121,0.0070293,38138.0,38130.0,0.5]
[1646630382320,0.0070293,38138.0,38129.0,0.0999]
[1646630382575,0.23770747,38136.0,38129.0,0.0999]
[1646630382780,0.23770747,38136.0,38129.0,0.0749]
[1646630383178,0.065594,38137.0,38130.0,0.68280953]
[1646630383380,0.59352067,38146.0,38136.0,0.20342677]
[1646630383381,0.01311,38144.0,38136.0,0.20342677]
[1646630383580,0.59352067,38146.0,38136.0,0.20342677]
[1646630383877,0.0154585,38144.0,38136.0,0.20342677]
[1646630384077,0.15613183,38140.0,38136.0,0.20342677]
[1646630384277,0.01424338,38139.0,38132.0,0.38009627]
[1646630384476,0.01424338,38139.0,38131.0,0.0526]
[1646630384775,0.21812686,38140.0,38131.0,0.0526]
[1646630384975,0.21812686,38140.0,38131.0,0.2526]
[1646630385176,0.21812686,38140.0,38134.0,0.37853732]
[1646630385376,0.21812686,38140.0,38134.0,0.19919902]
[1646630385576,0.20613183,38140.0,38134.0,0.19919902]
[1646630385974,0.20613183,38140.0,38130.0,0.2748]
[1646630386179,0.01033463,38139.0,38130.0,0.2748]
[1646630386418,0.00973463,38139.0,38132.0,0.16252]
[1646630387119,0.00973463,38139.0,38132.0,0.32530641]
[1646630387519,0.00973463,38139.0,38130.0,0.2748]
[1646630388521,0.00973463,38139.0,38130.0,0.29956487]
[1646630388721,0.00973463,38139.0,38130.0,0.27956487]
[1646630388722,0.065595,38135.0,38130.0,0.27956487]
[1646630388919,0.0107876,38134.0,38130.0,0.0548]
[1646630389119,0.01303746,38135.0,38130.0,0.0548]
[1646630389720,0.16683369,38134.0,38130.0,0.0548]
[1646630390674,0.16683369,38134.0,38127.0,0.19417343]
[1646630390973,0.16683369,38134.0,38129.0,0.21313768]
[1646630391176,0.01303746,38135.0,38129.0,0.21313768]
[1646630391975,0.065594,38136.0,38129.0,0.21313768]
[1646630392175,0.01177004,38134.0,38129.0,0.21313768]
[1646630392375,0.01560481,38132.0,38129.0,0.21313768]
[1646630392975,0.05,38135.0,38129.0,0.21313768]
[1646630393275,0.01297215,38134.0,38129.0,0.20313768]
[1646630393675,0.05,38135.0,38129.0,0.20313768]
[1646630393676,0.01146926,38135.0,38129.0,0.20313768]
[1646630393925,0.25104833,38137.0,38129.0,0.20313768]
[1646630393926,0.01531796,38136.0,38129.0,0.20313768]
[1646630395522,0.01531796,38136.0,38129.0,0.41478649]
[1646630395723,0.01531796,38136.0,38129.0,0.20313768]
[1646630396123,0.01531796,38136.0,38131.0,0.05850475]
[1646630396921,0.01140639,38135.0,38131.0,0.05850475]
[1646630397122,0.01311,38144.0,38131.0,0.05850475]
[1646630397324,0.115588,38145.0,38135.0,0.39173365]
[1646630397325,0.01518794,38141.0,38135.0,0.39173365]
[1646630398575,0.01518794,38141.0,38137.0,0.05777564]
[1646630398976,0.01446969,38140.0,38137.0,0.05777564]
[1646630399181,0.01311,38148.0,38137.0,0.05777564]
[1646630399182,0.01234823,38147.0,38137.0,0.05777564]
[1646630399386,0.0135665,38145.0,38137.0,0.05777564]
[1646630399580,0.06666767,38150.0,38137.0,0.05777564]
[1646630399581,0.01275686,38144.0,38137.0,0.05777564]
[1646630399778,0.20461872,38142.0,38136.0,0.30554556]
[1646630399979,0.20461872,38142.0,38133.0,0.41164881]
[1646630400178,0.20461872,38142.0,38133.0,0.21164881]
[1646630400379,0.25461872,38142.0,38133.0,0.21164881]
[1646630400580,0.25461872,38142.0,38138.0,0.18122059]
[1646630401617,0.25461872,38142.0,38135.0,0.45642455]
[1646630402018,0.05,38142.0,38135.0,0.45642455]
[1646630402219,0.01520631,38143.0,38135.0,0.45642455]
[1646630402419,0.115581,38145.0,38135.0,0.45642455]
[1646630402420,0.01448463,38141.0,38135.0,0.45642455]
[1646630402619,0.01410139,38143.0,38135.0,0.45642455]
[1646630402819,0.01480319,38143.0,38135.0,0.65642455]
[1646630403018,0.01480319,38143.0,38135.0,1.17361892]
[1646630403420,0.01068025,38145.0,38135.0,1.17361892]
[1646630403621,0.01068025,38145.0,38139.0,0.18848665]
[1646630403920,0.23476808,38147.0,38136.0,0.21164881]
[1646630404121,0.01390105,38145.0,38135.0,1.17361892]
[1646630404324,0.01105541,38144.0,38135.0,0.86807336]
[1646630404522,0.01109581,38143.0,38135.0,0.92488107]
[1646630404920,0.01109581,38143.0,38138.0,0.1667324]
[1646630405377,0.22187643,38147.0,38138.0,0.1667324]
[1646630405778,0.01474634,38141.0,38138.0,0.1667324]
[1646630405982,0.22187643,38147.0,38138.0,0.1667324]
[1646630406180,0.01028787,38145.0,38138.0,0.1667324]
[1646630406683,0.01177532,38143.0,38135.0,0.66807336]
[1646630406883,0.19852318,38141.0,38135.0,0.66807336]
[1646630407079,0.01454189,38140.0,38136.0,0.30554556]
[1646630407482,0.01128728,38140.0,38135.0,0.86807336]
[1646630407679,0.01248124,38140.0,38135.0,0.66807336]
[1646630407882,0.0142755,38140.0,38135.0,0.86807336]
[1646630408082,0.01356733,38140.0,38139.0,0.20698042]
[1646630408283,0.01160432,38140.0,38139.0,0.20698042]
[1646630408482,0.01451193,38140.0,38139.0,0.19274919]
[1646630408682,0.01254447,38144.0,38139.0,0.19274919]
[1646630408939,0.01254447,38144.0,38141.0,0.06776364]
[1646630409140,0.11817014,38150.0,38142.0,0.30554556]
[1646630409141,0.01396428,38145.0,38142.0,0.30554556]
[1646630409339,0.7768,38156.0,38148.0,0.17166229]
[1646630409340,0.01093084,38149.0,38148.0,0.17166229]
[1646630409543,0.564145,38159.0,38148.0,0.17166229]
[1646630409738,0.00106903,38150.0,38148.0,0.17166229]
[1646630410142,0.00106903,38150.0,38149.0,0.62759746]
[1646630410342,0.00106903,38150.0,38149.0,0.3746519]
[1646630410539,0.20264379,38160.0,38149.0,0.305519]
[1646630410739,0.21910456,38161.0,38149.0,0.61106456]
[1646630410939,0.0001648,38151.0,38149.0,0.61106456]
[1646630411140,0.0001648,38151.0,38149.0,0.0526]
[1646630411341,0.21020221,38150.0,38149.0,0.0526]
[1646630411540,0.0001648,38151.0,38149.0,0.42894186]
[1646630411741,0.0022,38169.0,38149.0,0.42894186]
[1646630411742,0.1257,38166.0,38150.0,0.60554556]
[1646630411942,0.0006591,38157.0,38151.0,0.0526]
[1646630412440,0.00247136,38161.0,38159.0,0.00131819]
[1646630412441,0.18048742,38160.0,38159.0,0.00131819]
[1646630412678,0.18048742,38160.0,38159.0,0.225322]
[1646630412875,0.18048742,38160.0,38159.0,0.00131819]
[1646630413079,0.17048742,38160.0,38159.0,0.00131819]
[1646630414277,0.7680189,38160.0,38159.0,0.00131819]
[1646630414478,0.8180189,38160.0,38159.0,0.00131819]
[1646630415078,1.33102348,38160.0,38159.0,0.00131819]
[1646630415279,1.20863024,38160.0,38159.0,0.00120743]
[1646630416346,0.82128124,38160.0,38159.0,0.00120743]
[1646630416538,0.51711764,38160.0,38159.0,0.00120743]
[1646630416739,0.90752665,38160.0,38159.0,0.00120743]
[1646630416939,0.44367135,38160.0,38159.0,7.43e-06]
[1646630417740,0.44067135,38160.0,38159.0,7.43e-06]
[1646630417940,0.45117535,38160.0,38159.0,7.43e-06]
[1646630418341,0.44067135,38160.0,38159.0,7.43e-06]
[1646630419748,0.59067135,38160.0,38148.0,0.00020805]
[1646630419950,0.390349,38157.0,38148.0,0.00020805]
[1646630420181,0.390349,38155.0,38144.0,0.0999]
[1646630420381,0.05,38154.0,38148.0,0.00020805]
[1646630420585,0.18635263,38151.0,38148.0,0.00020805]
[1646630420781,0.21733961,38149.0,38148.0,0.00020805]
[1646630420981,0.60768861,38149.0,38148.0,0.00020805]
[1646630421384,0.60768861,38149.0,38144.0,0.0999]
[1646630421584,0.2140293,38147.0,38144.0,0.0999]
[1646630421782,0.2640293,38147.0,38144.0,0.0999]
[1646630422187,0.2140293,38147.0,38144.0,0.0999]
[1646630422586,0.21733961,38149.0,38144.0,0.0999]
[1646630422782,0.21733961,38149.0,38144.0,0.10008518]
[1646630422783,0.26733961,38149.0,38144.0,0.10008518]
[1646630423683,0.51413876,38149.0,38144.0,0.0999]
[1646630423928,0.51413876,38149.0,38145.0,0.00018518]
[1646630424327,0.05,38149.0,38145.0,0.00018518]
[1646630424529,0.05,38149.0,38145.0,0.30434878]
[1646630424731,0.1291,38157.0,38145.0,0.00018518]
[1646630424732,0.116,38157.0,38145.0,0.00018518]
[1646630424929,0.22345896,38158.0,38150.0,0.16265119]
[1646630425132,0.05,38157.0,38150.0,0.16265119]
[1646630425330,0.17956612,38157.0,38150.0,0.16265119]
[1646630425529,0.17956612,38157.0,38150.0,0.33561107]
[1646630425929,0.17956612,38157.0,38150.0,0.16265119]
[1646630426130,0.17456612,38157.0,38147.0,0.25892121]
[1646630426329,0.17456612,38157.0,38148.0,0.00016685]
[1646630426529,0.17556612,38157.0,38148.0,0.00016685]
[1646630426730,0.001,38157.0,38148.0,0.00016685]
[1646630426936,0.001,38157.0,38150.0,0.2]
[1646630427131,0.001,38157.0,38151.0,0.3041636]
[1646630427330,0.001,38157.0,38151.0,0.3567636]
[1646630427570,0.001,38157.0,38153.0,0.288055]
[1646630427772,0.17895365,38157.0,38155.0,0.2092388]
[1646630428371,0.002,38157.0,38155.0,0.2092388]
[1646630429571,0.00021463,38159.0,38155.0,0.2092388]
[1646630429873,0.01588367,38159.0,38151.0,0.4566636]
[1646630430075,0.0160983,38159.0,38151.0,0.4566636]
[1646630430279,0.15844462,38155.0,38151.0,0.0999]
[1646630430676,0.05,38154.0,38151.0,0.0999]
[1646630430875,0.01471401,38153.0,38151.0,0.0999]
[1646630432527,0.390349,38152.0,38151.0,0.0999]
[1646630432727,0.440349,38152.0,38151.0,0.0999]
[1646630433426,0.01049785,38148.0,38146.0,0.004]
[1646630433626,0.01049785,38148.0,38142.0,0.21684175]
[1646630434028,0.01049785,38148.0,38144.0,0.21400248]
[1646630434428,0.05,38149.0,38144.0,0.21400248]
[1646630434627,0.01239798,38155.0,38148.0,0.15838564]
[1646630435084,0.01180846,38157.0,38150.0,0.15545132]
[1646630435285,0.01129703,38156.0,38150.0,0.15545132]
[1646630435684,0.18529724,38158.0,38152.0,0.25617726]
[1646630435885,0.01143076,38157.0,38154.0,0.19798088]
[1646630436085,0.0154049,38156.0,38154.0,0.19798088]
[1646630436286,0.01462677,38155.0,38154.0,0.19798088]
[1646630436488,0.0158366,38157.0,38154.0,0.19798088]
[1646630436688,0.01240842,38156.0,38154.0,0.19798088]
[1646630436888,0.18629724,38158.0,38154.0,0.19798088]
[1646630437088,0.01100415,38157.0,38152.0,0.25617726]
[1646630437290,0.01445868,38156.0,38152.0,0.25617726]
[1646630437488,0.01356048,38155.0,38152.0,0.25617726]
[1646630437689,0.01308643,38153.0,38152.0,0.25617726]
[1646630437888,0.01139243,38153.0,38150.0,0.15501172]
[1646630438092,0.01156272,38156.0,38150.0,0.15501172]
[1646630438289,0.23529724,38158.0,38154.0,0.1610669]
[1646630438290,0.01327988,38157.0,38154.0,0.1610669]
[1646630438491,0.00233478,38162.0,38156.0,0.2]
[1646630438695,0.0009,38166.0,38158.0,1.2]
[1646630438938,0.0022,38170.0,38163.0,0.2]
[1646630439145,0.1189665,38175.0,38169.0,0.02639]
[1646630439146,0.0011,38175.0,38169.0,0.02639]
[1646630439340,0.5011,38190.0,38185.0,0.2]
[1646630439573,0.20647955,38200.0,38185.0,0.2]
[1646630439574,0.009224,38208.0,38191.0,0.25]
[1646630439740,0.00856275,38208.0,38206.0,0.19961743]
[1646630439939,3.13075823,38210.0,38207.0,0.36942151]
[1646630439940,2.03725049,38210.0,38207.0,0.36942151]
[1646630440142,0.39691229,38210.0,38209.0,0.15507212]
[1646630440342,0.04576202,38212.0,38209.0,0.15507212]
[1646630440343,0.04576202,38212.0,38210.0,1.2]
[1646630440541,0.0999,38224.0,38213.0,0.00922]
[1646630440741,0.2568869,38235.0,38213.0,0.00922]
[1646630440742,0.04009785,38230.0,38215.0,0.6571]
[1646630440942,0.04009785,38230.0,38214.0,0.0686286]
[1646630440943,0.6945126,38229.0,38216.0,0.06567]
[1646630441139,0.04009785,38230.0,38214.0,0.06543769]
[1646630441140,0.390349,38228.0,38214.0,0.06543769]
[1646630441342,0.3041636,38227.0,38214.0,0.06543769]
[1646630441538,0.390349,38226.0,38213.0,0.13087537]
[1646630441741,0.51000504,38225.0,38213.0,0.13087537]
[1646630441942,0.540349,38222.0,38207.0,0.01307]
[1646630442137,0.540349,38222.0,38203.0,0.01307]
[1646630442138,0.15,38217.0,38203.0,0.01307]
[1646630442338,0.15,38215.0,38204.0,0.0526]
[1646630442577,0.00640809,38221.0,38217.0,0.55557273]
[1646630442778,0.19327977,38208.0,38204.0,0.0526]
[1646630442979,0.3041636,38211.0,38204.0,0.0526]
[1646630443178,0.05,38207.0,38204.0,0.05269]
[1646630443484,0.18055021,38216.0,38204.0,0.11814931]
[1646630443677,0.00022698,38221.0,38205.0,0.1377277]
[1646630443881,0.0136912,38221.0,38205.0,0.2902277]
[1646630444078,0.16719447,38219.0,38205.0,0.1525]
[1646630444279,0.01391739,38217.0,38213.0,0.005]
[1646630444481,0.01101613,38215.0,38213.0,0.005]
[1646630444679,0.15794226,38214.0,38213.0,0.005]
[1646630444881,0.85245486,38214.0,38213.0,0.005]
[1646630445480,0.15794226,38214.0,38213.0,0.005]
[1646630445680,0.45794226,38214.0,38213.0,0.005]
[1646630445881,0.20794226,38214.0,38213.0,0.005]
[1646630446086,0.01117662,38215.0,38213.0,0.005]
[1646630446328,0.00016049,38215.0,38213.0,0.005]
[1646630446528,0.01232383,38215.0,38213.0,0.005]
[1646630446727,6.207e-05,38215.0,38213.0,0.005]
[1646630446929,0.01355605,38227.0,38213.0,0.005]
[1646630447136,0.18068433,38226.0,38213.0,0.0576]
[1646630447532,0.01520321,38223.0,38213.0,0.32497887]
[1646630447831,0.0131497,38223.0,38214.0,0.3]
[1646630448029,0.6696022,38230.0,38216.0,0.01392362]
[1646630448030,0.49499785,38230.0,38216.0,0.01392362]
[1646630448261,0.0002272,38220.0,38219.0,0.1377277]
[1646630448429,0.0002272,38220.0,38219.0,0.4903277]
[1646630448636,0.0002272,38220.0,38219.0,0.1903277]
[1646630448930,0.0002272,38220.0,38219.0,0.1526]
[1646630449129,0.19983359,38225.0,38219.0,0.0526]
[1646630449333,0.00016348,38221.0,38219.0,0.0526]
[1646630449629,0.00016348,38221.0,38220.0,0.005]
[1646630450284,0.04009785,38230.0,38220.0,0.005]
[1646630450584,0.03665825,38230.0,38220.0,0.13584834]
[1646630450783,0.01582489,38229.0,38226.0,0.17997424]
[1646630450985,0.03665825,38230.0,38226.0,0.17997424]
[1646630451187,0.01156916,38229.0,38220.0,0.27357604]
[1646630451383,0.0126728,38227.0,38220.0,0.1427277]
[1646630451585,0.0126728,38227.0,38222.0,0.1377277]
[1646630451784,0.03688958,38230.0,38220.0,0.305]
[1646630452185,0.03688958,38230.0,38226.0,0.21055009]
[1646630452586,0.03665825,38230.0,38226.0,0.21055009]
[1646630452985,0.03688958,38230.0,38226.0,0.21055009]
[1646630453584,0.03188958,38230.0,38226.0,0.21055009]
[1646630453824,0.03165825,38230.0,38226.0,0.21055009]
[1646630454121,0.01216709,38229.0,38226.0,0.21055009]
[1646630454520,0.03188958,38230.0,38226.0,0.21055009]
[1646630454720,0.04321455,38230.0,38228.0,0.005]